bitfinex-derivatives/quotes_ETHF0:USTF0_20241004
["timestamp","ask_amount","ask_price","bid_price","bid_amount"]
[1728024408099,1.2449,2379.8,2379.5,0.14894806]
[1728024408100,3.0649,2379.8,2379.5,0.14894806]
[1728024408306,5.0278,2379.7,2379.5,0.42026]
[1728024408505,3.2078,2379.7,2379.6,0.42025]
[1728024408903,3.2078,2379.7,2379.5,0.42026]
[1728024409406,3.2078,2379.7,2379.4,0.42028]
[1728024409407,5.0278,2379.7,2379.4,0.42028]
[1728024409614,1.82,2379.6,2379.1,4.30851158]
[1728024409800,5.0278,2379.4,2379.0,1.51781158]
[1728024410006,5.0278,2379.4,2379.2,0.42032]
[1728024410007,0.845,2379.3,2379.2,0.42032]
[1728024410608,5.0482,2379.3,2379.0,0.42035]
[1728024410814,2.2337,2379.2,2379.0,0.42035]
[1728024411516,0.4137,2379.2,2379.0,0.42035]
[1728024412918,0.4137,2379.2,2378.8,0.14461068]
[1728024413113,0.4137,2379.2,2378.9,0.42037]
[1728024413707,3.2078,2379.1,2378.9,0.42037]
[1728024415120,3.2078,2379.1,2378.9,0.42036]
[1728024415829,3.2078,2379.1,2378.8,0.42039]
[1728024416710,3.6215,2379.2,2378.8,0.42039]
[1728024417918,3.6215,2379.2,2378.7,0.4204]
[1728024418624,4.04183,2379.2,2378.7,0.4204]
[1728024420626,7.98183,2379.2,2378.7,0.4204]
[1728024421128,7.98183,2379.2,2378.3,1.10071158]
[1728024421129,3.2078,2378.8,2378.3,1.10071158]
[1728024421332,3.2078,2378.8,2378.0,2.30016748]
[1728024421333,3.94,2378.4,2378.0,1.65106737]
[1728024421624,3.94,2378.4,2377.9,3.2078]
[1728024421625,0.4464,2378.3,2377.9,3.2078]
[1728024422027,3.2078,2378.5,2378.2,0.4205]
[1728024422223,3.2078,2378.5,2377.9,7.29219059]
[1728024422424,3.2078,2378.5,2378.2,0.42049]
[1728024422625,3.2078,2378.5,2377.9,7.29219059]
[1728024422822,3.2078,2378.5,2378.2,0.4205]
[1728024424830,3.2078,2378.5,2377.9,7.29219059]
[1728024425332,3.2078,2378.5,2378.2,0.4205]
[1728024425923,3.2078,2378.5,2378.1,3.94]
[1728024426127,0.4212,2378.6,2378.3,3.94]
[1728024426425,0.4212,2378.6,2378.4,0.65016]
[1728024428632,0.4212,2378.6,2378.4,0.2297]
[1728024429319,0.4212,2378.6,2378.5,0.42045]
[1728024430437,3.2078,2378.8,2378.7,0.42041]
[1728024430729,3.2078,2378.8,2378.5,4.204]
[1728024430730,0.4145,2378.9,2378.8,0.4204]
[1728024432530,0.4145,2378.9,2378.7,0.4204]
[1728024432728,0.4145,2378.9,2378.6,0.85392]
[1728024432933,4.3545,2378.9,2378.6,0.42042]
[1728024433430,4.3545,2378.9,2378.5,0.14729526]
[1728024433621,4.3545,2378.9,2378.6,0.42043]
[1728024434020,4.3545,2378.9,2378.4,1.0872]
[1728024434225,4.3545,2378.9,2378.8,0.4204]
[1728024434426,0.4145,2378.9,2378.8,0.4204]
[1728024434733,0.4145,2378.9,2378.7,0.4204]
[1728024434925,0.4145,2378.9,2378.4,1.23265608]
[1728024435125,0.4145,2378.9,2378.6,0.42042]
[1728024435325,0.4145,2378.9,2378.7,0.42041]
[1728024435528,0.4145,2378.9,2378.8,0.4204]
[1728024443226,0.4145,2378.9,2378.8,0.8662]
[1728024449145,3.3058,2379.2,2379.1,0.42034]
[1728024449331,3.2078,2379.2,2379.1,2.24034]
[1728024449532,3.2078,2379.2,2379.1,6.44354]
[1728024449533,2.05944583,2379.2,2379.1,6.44354]
[1728024451638,2.05944583,2379.2,2379.1,4.62354]
[1728024454142,0.4063,2379.5,2379.1,10.62354]
[1728024454443,0.5034,2379.7,2379.6,0.42025]
[1728024454642,0.4238,2379.8,2379.5,3.94]
[1728024454840,3.2078,2380.0,2379.9,0.4202]
[1728024454841,3.6532,2380.0,2379.9,0.4202]
[1728024458862,0.4454,2380.0,2379.9,0.4202]
[1728024459059,0.4454,2380.0,2379.6,5.0483]
[1728024459060,0.4454,2380.0,2379.7,0.56293107]
[1728024459356,0.4454,2380.0,2379.7,0.42023]
[1728024459664,0.4454,2380.0,2379.6,0.4374]
[1728024459665,0.4454,2380.0,2379.8,0.42022]
[1728024461369,0.4454,2380.0,2379.9,0.4202]
[1728024465666,0.4238,2380.1,2379.6,7.73083224]
[1728024465869,0.4238,2380.1,2380.0,0.42018]
[1728024466967,0.4238,2380.1,2380.0,4.62178]
[1728024469071,0.4135,2380.2,2380.0,8.1416]
[1728024469390,0.4144,2380.3,2380.2,0.42015]
[1728024470862,0.4144,2380.3,2380.2,4.62175]
[1728024472362,0.8396,2380.3,2380.2,4.62175]
[1728024473184,0.8396,2380.3,2380.2,0.42015]
[1728024474463,0.8396,2380.3,2380.2,8.56175]
[1728024474668,0.8396,2380.3,2380.2,11.76955]
[1728024475677,0.8396,2380.3,2380.2,9.64955]
[1728024476775,0.8396,2380.3,2380.2,6.44175]
[1728024476977,0.8396,2380.3,2380.2,9.64955]
[1728024478370,0.8396,2380.3,2380.2,5.44795]
[1728024479572,0.8396,2380.3,2380.2,2.24015]
[1728024479780,0.8396,2380.3,2380.2,5.44795]
[1728024481379,0.8396,2380.3,2380.0,0.14819922]
[1728024481574,0.8396,2380.3,2379.9,3.2078]
[1728024481779,0.8396,2380.3,2379.9,3.62799]
[1728024482091,0.8396,2380.3,2379.9,3.2078]
[1728024482281,2.6596,2380.3,2379.9,3.2078]
[1728024482783,2.6596,2380.3,2379.9,3.628]
[1728024483486,2.6596,2380.3,2379.9,3.77483702]
[1728024484895,2.6596,2380.3,2380.0,0.42018]
[1728024486196,0.8396,2380.3,2379.9,3.35463702]
[1728024486491,0.8396,2380.3,2379.9,5.17463702]
[1728024486689,0.8396,2380.3,2380.1,0.42016]
[1728024486890,0.8396,2380.3,2380.0,0.42017]
[1728024487388,0.8396,2380.3,2379.9,5.17463702]
[1728024487688,0.8396,2380.3,2380.2,0.42015]
[1728024488082,0.8396,2380.3,2380.2,2.24015]
[1728024491396,0.4156,2380.4,2380.3,0.42013]
[1728024492196,0.8461,2380.6,2380.5,0.4201]
[1728024492495,0.8461,2380.6,2380.5,2.2401]
[1728024493288,0.8461,2380.6,2380.5,1.82]
[1728024495800,0.8461,2380.6,2380.5,2.2401]
[1728024496297,0.8461,2380.6,2380.5,1.82]
[1728024497191,0.8461,2380.6,2380.5,2.2401]
[1728024502800,0.8461,2380.6,2380.5,2.3837586]
[1728024506802,0.8461,2380.6,2380.5,1.9636586]
[1728024507007,0.8461,2380.6,2380.5,2.3837586]
[1728024507304,0.8461,2380.6,2380.5,0.5637586]
[1728024508108,0.8461,2380.6,2380.5,0.1436586]
[1728024508406,0.8461,2380.6,2380.5,0.4201]
[1728024509901,0.8461,2380.6,2380.5,2.2401]
[1728024512199,0.8461,2380.6,2380.5,3.34081158]
[1728024514407,2.4937714,2380.6,2380.5,2.2401]
[1728024516008,0.8461,2380.6,2380.5,2.2401]
[1728024516401,2.4937714,2380.6,2380.5,2.2401]
[1728024516901,0.8461,2380.6,2380.5,3.34081158]
[1728024522405,0.8461,2380.6,2380.5,4.70302762]
[1728024524315,0.8461,2380.6,2380.5,4.70298898]
[1728024528507,0.8461,2380.6,2380.5,1.10071158]
[1728024529208,2.4937714,2380.6,2380.4,4.72862158]
[1728024529415,2.4937714,2380.6,2380.5,1.10071158]
[1728024530416,18.69297134,2380.6,2380.3,0.45871158]
[1728024530607,6.40157121,2380.5,2380.2,0.87885158]
[1728024530808,2.20077121,2380.4,2380.2,0.42014]
[1728024531314,0.4267,2380.3,2380.2,0.42014]
[1728024531619,2.07733676,2380.3,2380.2,1.78046166]
[1728024532213,0.4267,2380.3,2380.2,3.43152903]
[1728024532515,1.65063676,2380.4,2380.2,1.75712166]
[1728024532712,1.65063676,2380.4,2380.3,5.25313921]
[1728024534819,1.65063676,2380.4,2380.3,9.45393921]
[1728024535122,0.4087,2380.5,2380.3,9.45393921]
[1728024535123,2.05933676,2380.5,2380.4,0.42011]
[1728024535322,2.05933676,2380.5,2380.4,3.43354611]
[1728024535617,2.09093676,2380.6,2380.4,1.36032166]
[1728024535812,2.09093676,2380.6,2380.5,5.25356729]
[1728024536311,2.09093676,2380.6,2380.5,5.80258914]
[1728024536312,0.4403,2380.6,2380.5,5.80258914]
[1728024537411,0.4403,2380.6,2380.5,8.52436827]
[1728024538115,0.4403,2380.6,2380.5,8.52436968]
[1728024538512,0.4403,2380.6,2380.5,5.80313724]
[1728024539620,0.4403,2380.6,2380.5,5.9523386]
[1728024540821,0.4403,2380.6,2380.5,8.67400177]
[1728024541118,0.4403,2380.6,2380.5,5.9523386]
[1728024542211,0.4403,2380.6,2380.5,5.95228577]
[1728024542619,0.4403,2380.6,2380.5,9.16008577]
[1728024544120,2.04653676,2380.7,2380.5,12.94078577]
[1728024544319,2.7507505,2381.0,2380.6,13.00419114]
[1728024544320,3.85140797,2381.0,2380.6,13.00419114]
[1728024544619,0.113,2381.3,2381.2,0.41997]
[1728024544620,2.14363676,2381.3,2381.2,0.41997]
[1728024544820,0.395,2381.3,2381.2,8.45934493]
[1728024545414,0.395,2381.3,2381.2,8.03937493]
[1728024545725,0.395,2381.3,2381.2,6.38690291]
[1728024545918,0.395,2381.3,2381.2,5.44777]
[1728024547527,0.7991,2381.3,2381.2,5.44777]
[1728024550014,0.7991,2381.3,2381.2,5.59239221]
[1728024556145,0.7991,2381.3,2381.2,1.82]
[1728024556440,0.7991,2381.3,2381.1,2.23999]
[1728024557622,0.7991,2381.3,2381.2,0.41997]
[1728024561136,0.7991,2381.3,2381.2,2.23997]
[1728024566044,0.7991,2381.3,2381.2,2.38240679]
[1728024566740,0.4041,2381.3,2381.2,2.38240679]
[1728024569739,0.4041,2381.3,2381.2,5.59020679]
[1728024570247,0.408,2381.6,2381.2,5.17023679]
[1728024570547,0.4069,2381.5,2381.4,2.23994]
[1728024570737,0.4069,2381.5,2381.4,1.82]
[1728024573544,0.4069,2381.5,2381.4,2.23994]
[1728024574147,0.4069,2381.5,2381.4,3.04664]
[1728024574744,0.4143,2381.7,2381.5,0.41991]
[1728024574946,0.8146,2381.7,2381.6,1.82]
[1728024575447,5.013,2381.7,2381.6,1.82]
[1728024577348,0.8146,2381.7,2381.6,2.2399]
[1728024577844,0.8146,2381.7,2381.6,1.82]
[1728024579743,0.8146,2381.7,2381.6,2.2399]
[1728024580245,0.8146,2381.7,2381.6,1.82]
[1728024584151,2.46523676,2381.7,2381.6,2.2399]
[1728024585448,2.46523676,2381.7,2381.6,1.82]
[1728024585745,2.46523676,2381.7,2381.6,2.2399]
[1728024585948,2.46523676,2381.7,2381.6,1.82]
[1728024586140,2.46523676,2381.7,2381.6,2.2399]
[1728024586744,8.48363676,2381.7,2381.3,0.41994]
[1728024587048,1.65063676,2381.5,2381.1,2.891]
[1728024587249,1.65063676,2381.5,2381.4,0.41994]
[1728024587550,2.20077121,2381.6,2381.4,0.41994]
[1728024588347,2.20077121,2381.6,2381.2,1.82]
[1728024588555,1.65018718,2381.4,2381.3,0.41995]
[1728024589853,1.65018718,2381.4,2381.3,3.43541322]
[1728024590444,1.65018718,2381.4,2381.3,3.43542802]
[1728024591259,1.65018718,2381.4,2381.3,3.01547802]
[1728024592860,1.65018718,2381.4,2381.3,1.36373666]
[1728024593448,2.20077121,2381.5,2381.2,3.47174136]
[1728024593660,2.03899077,2381.3,2381.2,3.47174136]
[1728024593849,2.03899077,2381.3,2381.2,4.83534672]
[1728024594064,2.03899077,2381.3,2381.2,5.25531672]
[1728024595267,2.03899077,2381.3,2381.2,5.25448914]
[1728024596580,2.03899077,2381.3,2381.2,4.83451914]
[1728024596770,0.3868,2381.3,2381.2,4.83451914]
[1728024597077,2.03899077,2381.3,2381.2,5.25448914]
[1728024598462,0.3868,2381.3,2381.2,5.25448914]
[1728024598662,2.03899077,2381.3,2381.2,4.83451914]
[1728024599169,2.03899077,2381.3,2381.2,5.25448914]
[1728024599871,0.3868,2381.3,2381.2,5.25448914]
[1728024600172,0.3868,2381.3,2381.2,5.25394636]
[1728024601975,0.3868,2381.3,2381.2,4.83397636]
[1728024602367,0.3868,2381.3,2381.2,5.25394636]
[1728024602568,2.03899077,2381.3,2381.2,3.182235]
[1728024603085,2.03899077,2381.3,2381.2,4.83397636]
[1728024603373,2.03899077,2381.3,2381.2,5.25394636]
[1728024603574,2.03899077,2381.3,2381.2,3.602205]
[1728024604075,2.03899077,2381.3,2381.2,8.46174636]
[1728024604477,0.3868,2381.3,2381.2,8.46174636]
[1728024604675,1.65219077,2381.4,2381.3,0.41995]
[1728024604873,1.65219077,2381.5,2381.4,0.41994]
[1728024605073,6.22617121,2381.7,2381.4,3.39832604]
[1728024605074,3.01837121,2381.7,2381.4,3.39832604]
[1728024605280,1.65168099,2381.6,2381.5,1.78268728]
[1728024605779,1.65168099,2381.6,2381.5,3.60268728]
[1728024605973,1.65168099,2381.6,2381.5,5.25267832]
[1728024606378,1.65168099,2381.7,2381.5,3.18276728]
[1728024606580,1.65168099,2381.7,2381.6,0.4199]
[1728024607078,1.65168099,2381.8,2381.7,0.41988]
[1728024607378,1.65168099,2381.9,2381.8,0.41987]
[1728024607572,1.65168099,2382.0,2381.9,0.41985]
[1728024607769,1.65168099,2382.0,2381.9,1.82]
[1728024608384,1.65168099,2382.0,2381.9,2.23985]
[1728024608591,1.65168099,2382.0,2381.9,1.82]
[1728024608876,1.65168099,2382.0,2381.9,2.23985]
[1728024609471,2.05018099,2382.1,2381.9,5.44765]
[1728024609878,1.65168099,2382.0,2381.9,3.2078]
[1728024613082,1.65168099,2382.0,2381.7,3.17994149]
[1728024613285,1.65168099,2382.0,2381.7,6.38774149]
[1728024613691,2.05018099,2382.1,2381.7,6.38774149]
[1728024613873,1.65168099,2382.0,2381.7,6.38774149]
[1728024614095,3.47168099,2382.0,2381.7,3.35106149]
[1728024614386,0.3888,2381.9,2381.7,3.35106149]
[1728024614580,0.3904,2381.8,2381.7,3.35106149]
[1728024614783,0.8088,2381.8,2381.7,3.2078]
[1728024615682,0.8088,2381.8,2381.7,3.62768]
[1728024615882,0.8088,2381.8,2381.7,3.2078]
[1728024616089,5.0072,2381.8,2381.4,1.64999104]
[1728024616380,3.47168099,2381.5,2381.2,3.2078]
[1728024616681,0.4184,2381.4,2381.2,3.2078]
[1728024616877,0.3982,2381.3,2381.2,3.2078]
[1728024617103,4.5974,2381.3,2381.0,0.42001]
[1728024617280,0.4047,2381.2,2380.9,3.2078]
[1728024617683,0.4047,2381.2,2380.9,3.62782]
[1728024618285,2.05638099,2381.2,2380.9,3.62782]
[1728024618585,2.05638099,2381.2,2381.0,0.42001]
[1728024619490,0.4047,2381.2,2381.1,0.41999]
[1728024619692,0.4047,2381.2,2381.0,2.23999]
[1728024620083,0.4047,2381.2,2381.0,1.82]
[1728024620581,0.4047,2381.2,2381.0,2.23999]
[1728024620780,0.4047,2381.2,2381.1,0.41999]
[1728024620991,2.04988099,2381.3,2381.1,1.82]
[1728024621291,0.3982,2381.3,2381.1,2.23998]
[1728024621990,0.3982,2381.3,2381.1,1.82]
[1728024622501,0.3982,2381.3,2381.0,2.2112]
[1728024623192,0.3982,2381.3,2381.1,2.23999]
[1728024624485,0.3982,2381.3,2381.1,1.82]
[1728024624690,1.65168099,2381.5,2381.1,2.23998]
[1728024624891,2.06958099,2381.5,2381.1,2.23998]
[1728024625087,2.06958099,2381.5,2381.1,1.82]
[1728024625493,3.88958099,2381.5,2381.0,2.2112]
[1728024625693,1.65168099,2381.4,2381.0,1.82]
[1728024626094,1.65168099,2381.4,2381.0,2.24]
[1728024626397,1.82,2381.3,2381.0,1.82]
[1728024626592,1.82,2381.3,2381.0,2.24]
[1728024627707,1.82,2381.3,2381.0,1.82]
[1728024628097,1.82,2381.3,2381.0,2.24]
[1728024630798,1.82,2381.3,2381.0,2.24001]
[1728024632196,1.65168099,2381.4,2381.0,2.24001]
[1728024632702,1.65168099,2381.4,2381.0,1.82]
[1728024632900,1.65168099,2381.4,2381.0,2.24]
[1728024633102,2.66086,2381.3,2380.9,3.2078]
[1728024633303,2.23997,2381.2,2380.9,3.2078]
[1728024633515,1.82,2381.0,2380.9,3.2078]
[1728024633808,1.82,2381.0,2380.7,2.24004]
[1728024634004,0.4209,2380.9,2380.7,2.24004]
[1728024635102,0.4209,2380.9,2380.7,2.24006]
[1728024635397,0.8456,2380.9,2380.7,2.24006]
[1728024635611,0.8456,2380.9,2380.8,0.42004]
[1728024636403,0.4209,2380.9,2380.8,0.42004]
[1728024636797,0.4209,2380.9,2380.8,2.24004]
[1728024638308,0.4209,2380.9,2380.8,1.82]
[1728024641309,0.4272,2381.1,2380.8,1.82]
[1728024644608,0.4272,2381.1,2380.7,2.79031473]
[1728024646006,0.4272,2381.1,2380.7,2.64476]
[1728024647805,0.4272,2381.1,2380.7,2.2247]
[1728024648006,0.4272,2381.1,2380.7,2.64476]
[1728024651816,0.84719,2381.1,2380.7,2.64476]
[1728024652007,0.42002,2381.0,2380.7,0.4047]
[1728024652220,2.63562,2381.0,2380.6,0.82337]
[1728024652410,1.82,2380.8,2380.6,0.82337]
[1728024652611,0.4065,2380.7,2380.6,0.82337]
[1728024655610,0.4065,2380.7,2380.6,0.4033]
[1728024655813,0.4065,2380.7,2380.6,0.82338]
[1728024656809,0.4065,2380.7,2380.6,0.4033]
[1728024658213,0.4065,2380.7,2380.6,0.82338]
[1728024658518,0.4065,2380.7,2380.6,0.4033]
[1728024658711,0.4065,2380.7,2380.6,0.82338]
[1728024660215,0.4065,2380.7,2380.6,0.4033]
[1728024660821,0.4065,2380.7,2380.6,0.82338]
[1728024663719,0.4065,2380.7,2380.6,1.91968991]
[1728024663925,0.4065,2380.7,2380.6,0.82338]
[1728024664122,0.4065,2380.7,2380.6,1.49960991]
[1728024666520,0.4065,2380.7,2380.6,1.09630991]
[1728024666721,0.4065,2380.7,2380.5,1.09630991]
[1728024667028,0.7895,2380.6,2380.5,1.09630991]
[1728024667621,4.9903,2380.6,2380.4,1.09630991]
[1728024667822,0.7895,2380.6,2380.4,1.09630991]
[1728024668127,2.44118099,2380.6,2380.3,1.51642991]
[1728024668321,2.44118099,2380.6,2380.4,1.09630991]
[1728024668526,2.44118099,2380.6,2380.3,2.07011104]
[1728024668527,0.4201,2380.5,2380.3,1.09630991]
[1728024668719,7.09958099,2380.5,2380.2,1.93354991]
[1728024668925,6.67948099,2380.5,2380.2,1.93354991]
[1728024669623,6.67948099,2380.5,2380.2,0.83724]
[1728024669624,1.82,2380.4,2380.2,0.83724]
[1728024669821,1.82,2380.4,2380.2,0.42014]
[1728024669822,0.4179,2380.3,2380.2,0.42014]
[1728024670026,0.825,2380.3,2380.2,0.42014]
[1728024671528,0.825,2380.3,2380.1,1.09630991]
[1728024671930,0.825,2380.3,2380.2,0.42015]
[1728024674538,0.825,2380.3,2380.1,0.42016]
[1728024675541,2.645,2380.3,2380.0,4.70640991]
[1728024675734,0.3981,2380.2,2380.0,5.12658991]
[1728024676127,0.3981,2380.2,2380.0,4.03028]
[1728024676536,0.3981,2380.2,2380.0,3.6101]
[1728024677038,6.44178,2380.1,2379.8,1.09630991]
[1728024677335,1.82,2379.9,2379.5,1.51656991]
[1728024677567,1.82,2379.6,2379.5,0.42026]
[1728024678643,0.4174,2379.7,2379.4,4.0021]
[1728024679135,0.4174,2379.7,2379.5,0.42027]
[1728024679338,0.4174,2379.7,2379.4,4.42238]
[1728024679531,1.82,2379.5,2379.2,1.09630991]
[1728024679729,1.82,2379.5,2379.2,0.83442]
[1728024679933,4.04544,2379.7,2379.0,1.65456113]
[1728024679934,1.82,2379.3,2379.0,1.65456113]
[1728024680133,1.82,2379.2,2378.9,1.93077991]
[1728024680332,1.82,2379.2,2378.9,0.83447]
[1728024680748,1.82,2379.2,2379.0,0.42035]
[1728024681041,1.244,2379.4,2379.1,2.24034]
[1728024681268,1.244,2379.4,2378.9,0.4141]
[1728024681269,0.8374,2379.4,2379.3,0.42031]
[1728024681539,1.82,2379.6,2379.3,0.42029]
[1728024681741,1.82,2379.6,2379.4,0.42029]
[1728024682138,1.82,2379.6,2379.3,0.805]
[1728024682350,1.82,2379.6,2379.3,1.2253]
[1728024683641,4.3594,2379.7,2379.3,1.2253]
[1728024683846,4.3594,2379.7,2379.3,1.22531]
[1728024686142,7.5672,2379.7,2379.3,0.805]
[1728024686844,3.94,2379.6,2379.3,0.409]
[1728024687752,3.94,2379.6,2379.3,0.82931]
[1728024690153,3.94,2379.6,2379.4,0.42029]
[1728024690650,3.94,2379.6,2379.3,0.8293]
[1728024691370,3.6272,2379.7,2379.3,0.409]
[1728024691540,3.6272,2379.7,2379.5,0.42027]
[1728024692246,0.4194,2379.7,2379.5,0.42027]
[1728024692445,0.4194,2379.7,2379.3,0.7944]
[1728024692446,0.4194,2379.7,2379.4,0.42028]
[1728024695262,0.4194,2379.7,2379.3,0.7944]
[1728024695441,0.4194,2379.7,2379.4,0.42029]
[1728024695642,0.4194,2379.7,2379.3,0.7944]
[1728024695850,0.4194,2379.7,2379.4,0.42029]
[1728024697638,0.4194,2379.7,2379.5,0.42027]
[1728024698247,0.4194,2379.7,2379.4,0.42028]
[1728024698649,0.4194,2379.7,2379.3,0.7944]
[1728024698858,0.4194,2379.7,2379.4,0.42028]
[1728024699750,0.4194,2379.7,2379.5,0.4097]
[1728024700160,0.8461,2379.8,2379.6,0.42024]
[1728024700453,0.8461,2379.8,2379.7,0.81214]
[1728024701651,0.8461,2379.8,2379.7,0.3919]
[1728024702958,0.8461,2379.8,2379.6,0.42025]
[1728024703455,0.8461,2379.8,2379.7,0.42024]
[1728024703648,2.6661,2379.8,2379.7,0.42024]
[1728024705852,2.6661,2379.8,2379.6,0.42025]
[1728024706064,2.6661,2379.8,2379.5,4.0289]
[1728024706358,2.6661,2379.8,2379.6,0.42025]
[1728024707252,2.6661,2379.8,2379.5,4.44916]
[1728024707459,1.82,2379.6,2379.5,4.44916]
[1728024708757,1.82,2379.6,2379.5,1.24136]
[1728024710560,1.82,2379.9,2379.5,0.8211]
[1728024710756,0.8151,2380.0,2379.9,0.4202]
[1728024711658,0.8151,2380.0,2379.9,0.8343]
[1728024716462,1.82,2380.1,2380.0,0.42018]
[1728024717157,1.82,2380.2,2380.1,0.42017]
[1728024717567,1.65168099,2380.6,2380.1,4.2016]
[1728024717865,1.65168099,2380.6,2380.5,0.4201]
[1728024717866,0.4146,2380.6,2380.5,0.4201]
[1728024719070,0.4146,2380.6,2380.4,0.4203]
[1728024719071,2.2346,2380.6,2380.4,0.4203]
[1728024719366,4.2008,2380.5,2380.1,1.09630991]
[1728024719566,1.82,2380.2,2380.0,0.42018]
[1728024719764,1.82,2380.2,2379.8,2.16030991]
[1728024719765,0.8271,2380.1,2379.8,2.16030991]
[1728024719958,0.8271,2380.1,2379.9,0.42019]
[1728024720363,0.8271,2380.1,2379.8,2.16030991]
[1728024720563,0.8271,2380.1,2380.0,0.42018]
[1728024723565,0.8271,2380.1,2379.7,9.04408841]
[1728024723769,0.8271,2380.1,2380.0,0.42018]
[1728024724071,0.8271,2380.1,2379.7,10.69407945]
[1728024724270,0.8271,2380.1,2380.0,0.42018]
[1728024724970,0.8271,2380.1,2379.7,9.04408841]
[1728024725172,1.82,2379.8,2379.7,3.62803]
[1728024725362,1.82,2379.8,2379.7,3.62804]
[1728024725563,1.82,2379.8,2379.7,3.2078]
[1728024729165,1.82,2379.8,2379.7,3.62804]
[1728024730376,1.82,2379.8,2379.7,3.2078]
[1728024730771,1.82,2379.8,2379.7,3.62804]
[1728024732071,1.82,2379.8,2379.7,3.2078]
[1728024733269,1.82,2379.8,2379.5,3.62806]
[1728024733469,2.2473,2379.7,2379.5,3.2078]
[1728024733770,2.6627,2379.7,2379.5,3.2078]
[1728024733972,0.4026,2379.6,2379.5,3.2078]
[1728024735767,0.4026,2379.6,2379.5,3.62807]
[1728024736879,0.4026,2379.6,2379.5,3.2078]
[1728024738079,0.4026,2379.6,2379.5,3.62807]
[1728024739080,0.4026,2379.6,2379.5,0.42027]
[1728024739372,0.4026,2379.6,2378.8,2.95730095]
[1728024739373,12.80577121,2379.6,2378.8,2.95730095]
[1728024739578,1.82,2379.3,2379.2,0.42032]
[1728024740372,2.2111,2379.3,2379.2,0.42032]
[1728024741179,6.83461,2379.3,2379.0,0.42035]
[1728024741387,1.82,2379.0,2378.9,0.42037]
[1728024741678,3.94,2379.0,2378.8,0.42039]
[1728024741878,3.94,2379.0,2378.7,0.4204]
[1728024741879,0.4131,2378.9,2378.7,0.4204]
[1728024742079,0.4131,2378.9,2378.6,3.62822]
[1728024742080,4.3292,2378.8,2378.6,3.62822]
[1728024742285,4.3292,2378.8,2378.7,0.42041]
[1728024742685,8.5332,2378.8,2378.6,3.2078]
[1728024742890,4.3292,2378.8,2378.7,0.42041]
[1728024743299,8.5332,2378.8,2378.7,0.42041]
[1728024743683,8.5332,2378.8,2378.6,3.62822]
[1728024743883,4.3292,2378.8,2378.6,3.62822]
[1728024744284,4.3292,2378.8,2378.3,4.70210991]
[1728024744480,3.94,2378.6,2378.5,0.42044]
[1728024745191,3.94,2378.6,2378.5,0.42045]
[1728024747586,0.3892,2378.8,2378.5,4.204]
[1728024747786,0.3892,2378.8,2378.7,0.42041]
[1728024749595,0.3892,2378.8,2378.6,0.42042]
[1728024750296,0.3892,2378.8,2378.7,0.4022]
[1728024751492,0.3892,2378.8,2378.3,3.6058]
[1728024751493,8.5332,2378.8,2378.3,3.6058]
[1728024751686,8.5332,2378.8,2378.3,0.398]
[1728024751687,3.94,2378.6,2378.3,0.398]
[1728024752098,0.3933,2378.5,2378.3,0.398]
[1728024752498,0.3933,2378.5,2378.3,0.81848]
[1728024752701,0.3933,2378.5,2378.4,0.42047]
[1728024753004,3.94,2378.7,2378.6,0.42043]
[1728024753498,3.94,2378.7,2378.3,0.398]
[1728024753700,3.94,2378.7,2378.5,0.42044]
[1728024753895,3.94,2378.7,2378.6,0.4149]
[1728024754402,3.94,2378.7,2378.6,0.83533]
[1728024754998,3.94,2378.7,2378.6,0.4149]
[1728024756415,0.7825,2378.8,2378.6,0.4149]
[1728024756604,0.4173,2379.0,2378.7,0.4161]
[1728024756796,0.4173,2379.0,2378.9,0.42038]
[1728024759206,0.4173,2379.0,2378.7,0.8067]
[1728024759504,0.4173,2379.0,2378.8,0.42038]
[1728024759735,0.4173,2379.0,2378.7,0.8067]
[1728024759903,0.4173,2379.0,2378.8,0.42038]
[1728024760707,0.4173,2379.0,2378.9,0.42038]
[1728024762811,0.4173,2379.0,2378.8,0.42038]
[1728024763310,0.4173,2379.0,2378.9,0.42038]
[1728024771508,2.2373,2379.0,2378.9,0.42038]
[1728024771731,2.2373,2379.0,2378.8,0.42039]
[1728024772615,2.2373,2379.0,2378.9,0.42038]
[1728024774116,0.4173,2379.0,2378.9,0.42038]
[1728024774319,2.2373,2379.0,2378.9,0.42038]
[1728024777919,0.3925,2379.3,2379.1,0.42034]
[1728024777920,0.4064,2379.2,2379.1,0.42034]
[1728024778221,0.3925,2379.3,2379.2,0.42033]
[1728024778222,1.82,2379.3,2379.2,0.42033]
[1728024778818,1.82,2379.3,2379.0,1.91450991]
[1728024779017,1.82,2379.3,2379.2,0.42033]
[1728024782531,1.82,2379.3,2379.1,1.09630991]
[1728024782721,1.82,2379.2,2379.1,1.51663991]
[1728024784919,1.82,2379.2,2379.1,0.42033]
[1728024786029,1.82,2379.2,2379.0,2.08014996]
[1728024786224,1.82,2379.1,2379.0,0.98384005]
[1728024786623,1.82,2379.1,2379.0,0.56534005]
[1728024791828,1.82,2379.1,2379.0,1.66164996]
[1728024793037,2.2244,2379.1,2379.0,1.66164996]
[1728024798433,2.2244,2379.1,2379.0,3.03188444]
[1728024799641,2.2244,2379.1,2379.0,2.88689439]
[1728024799839,2.2244,2379.1,2379.0,1.51665991]
[1728024800541,2.2244,2379.1,2379.0,2.88741563]
[1728024801747,2.2244,2379.1,2379.0,2.8876313]
[1728024802540,2.2244,2379.1,2379.0,3.44131243]
[1728024811567,2.2244,2379.1,2379.0,3.44216709]